[Event "Titled Tuesday Blitz May 2 Late 2023"]
[White "Sanal, Vahap"]
[Black "Babazada, Khazar"]
[WhiteFideId "6300545"]
[BlackFideId "13413554"]
[WhiteElo "2606"]
[BlackElo "2351"]
[Result "1/2-1/2"]
[Round "07"]
[TimeControl "180+2"]
[Date "2023.05.02"]
[WhiteClock "0:00:05"]
[BlackClock "0:00:07"]

1. e4 {[%clk 0:02:59]}  c6 {[%clk 0:02:52]} 2. Nf3 {[%clk 0:02:57]}  d5 {[%clk 0:02:53]} 3. d3 {[%clk 0:02:57]}  dxe4 {[%clk 0:02:49]} 4. dxe4 {[%clk 0:02:57]}  Qxd1+ {[%clk 0:02:50]} 5. Kxd1 {[%clk 0:02:58]}  g6 {[%clk 0:02:51]} 6. Nbd2 {[%clk 0:02:58]}  Bg7 {[%clk 0:02:50]} 7. Ne1 {[%clk 0:02:56]}  Nf6 {[%clk 0:02:44]} 8. Nd3 {[%clk 0:02:55]}  O-O {[%clk 0:02:41]} 9. f3 {[%clk 0:02:55]}  Rd8 {[%clk 0:02:32]} 10. c3 {[%clk 0:02:54]}  b6 {[%clk 0:02:32]} 11. Kc2 {[%clk 0:02:53]}  c5 {[%clk 0:02:32]} 12. a4 {[%clk 0:02:45]}  Nc6 {[%clk 0:02:30]} 13. Nc4 {[%clk 0:02:44]}  Be6 {[%clk 0:02:28]} 14. Nf4 {[%clk 0:02:35]}  Bxc4 {[%clk 0:02:29]} 15. Bxc4 {[%clk 0:02:34]}  e6 {[%clk 0:02:29]} 16. Ba6 {[%clk 0:02:29]}  Na5 {[%clk 0:02:21]} 17. Ne2 {[%clk 0:02:22]}  Ne8 {[%clk 0:02:16]} 18. Bf4 {[%clk 0:02:16]}  e5 {[%clk 0:02:01]} 19. Bg5 {[%clk 0:02:13]}  f6 {[%clk 0:02:01]} 20. Bh4 {[%clk 0:01:56]}  Nc7 {[%clk 0:01:54]} 21. Bb5 {[%clk 0:01:38]}  a6 {[%clk 0:01:51]} 22. b4 {[%clk 0:01:38]}  cxb4 {[%clk 0:01:27]} 23. cxb4 {[%clk 0:01:35]}  axb5 {[%clk 0:01:27]} 24. bxa5 {[%clk 0:01:35]}  Rxa5 {[%clk 0:01:28]} 25. axb5 {[%clk 0:01:24]}  Rxb5 {[%clk 0:01:27]} 26. Rhd1 {[%clk 0:01:24]}  Rc5+ {[%clk 0:01:27]} 27. Kb3 {[%clk 0:01:24]}  Rc8 {[%clk 0:01:24]} 28. Ra7 {[%clk 0:01:15]}  Bf8 {[%clk 0:01:22]} 29. Bxf6 {[%clk 0:01:10]}  Rb5+ {[%clk 0:01:22]} 30. Ka2 {[%clk 0:01:05]}  Ne8 {[%clk 0:01:18]} 31. Be7 {[%clk 0:00:36]}  Rc2+ {[%clk 0:01:14]} 32. Ka1 {[%clk 0:00:31]}  Rxe2 {[%clk 0:00:28]} 33. Rd8 {[%clk 0:00:30]}  Ra5+ {[%clk 0:00:18]} 34. Rxa5 {[%clk 0:00:27]}  bxa5 {[%clk 0:00:19]} 35. Rxe8 {[%clk 0:00:27]}  Kf7 {[%clk 0:00:20]} 36. Rxf8+ {[%clk 0:00:28]}  Kxe7 {[%clk 0:00:21]} 37. Rh8 {[%clk 0:00:21]}  h5 {[%clk 0:00:19]} 38. g4 {[%clk 0:00:16]}  Rxh2 {[%clk 0:00:19]} 39. gxh5 {[%clk 0:00:15]}  Rxh5 {[%clk 0:00:19]} 40. Ra8 {[%clk 0:00:14]}  Kf6 {[%clk 0:00:17]} 41. Rxa5 {[%clk 0:00:13]}  Rh2 {[%clk 0:00:17]} 42. Kb1 {[%clk 0:00:10]}  Rf2 {[%clk 0:00:17]} 43. Ra6+ {[%clk 0:00:08]}  Kg5 {[%clk 0:00:17]} 44. Re6 {[%clk 0:00:09]}  Kf4 {[%clk 0:00:14]} 45. Rxg6 {[%clk 0:00:08]}  Rxf3 {[%clk 0:00:06]} 46. Kc1 {[%clk 0:00:09]}  Kxe4 {[%clk 0:00:05]} 47. Kd2 {[%clk 0:00:08]}  Rh3 {[%clk 0:00:05]} 48. Ke2 {[%clk 0:00:08]}  Rh2+ {[%clk 0:00:06]} 49. Ke1 {[%clk 0:00:09]}  Kf4 {[%clk 0:00:06]} 50. Ra6 {[%clk 0:00:09]}  e4 {[%clk 0:00:06]} 51. Ra3 {[%clk 0:00:10]}  Rg2 {[%clk 0:00:06]} 52. Rb3 {[%clk 0:00:10]}  Rc2 {[%clk 0:00:07]} 53. Ra3 {[%clk 0:00:10]}  Rc8 {[%clk 0:00:07]} 54. Rb3 {[%clk 0:00:10]}  Ke5 {[%clk 0:00:07]} 55. Ra3 {[%clk 0:00:10]}  Kd4 {[%clk 0:00:08]} 56. Ra4+ {[%clk 0:00:09]}  Ke3 {[%clk 0:00:08]} 57. Ra3+ {[%clk 0:00:09]}  Kf4 {[%clk 0:00:08]} 58. Rb3 {[%clk 0:00:09]}  Ra8 {[%clk 0:00:08]} 59. Rc3 {[%clk 0:00:10]}  Ke5 {[%clk 0:00:09]} 60. Rb3 {[%clk 0:00:10]}  Kd4 {[%clk 0:00:09]} 61. Ke2 {[%clk 0:00:09]}  Ra2+ {[%clk 0:00:09]} 62. Ke1 {[%clk 0:00:10]}  Ra5 {[%clk 0:00:07]} 63. Ke2 {[%clk 0:00:07]}  Ra4 {[%clk 0:00:07]} 64. Rh3 {[%clk 0:00:05]}  Ra2+ {[%clk 0:00:08]} 65. Ke1 {[%clk 0:00:05]}  Kc4 {[%clk 0:00:05]} 66. Re3 {[%clk 0:00:05]}  Kd5 {[%clk 0:00:05]} 67. Rb3 {[%clk 0:00:05]}  Kc4 {[%clk 0:00:06]} 68. Re3 {[%clk 0:00:06]}  Rb2 {[%clk 0:00:07]} 69. Rxe4+ {[%clk 0:00:05]}  Kc3 {[%clk 0:00:03]} 70. Rh4 {[%clk 0:00:04]}  Kb3 {[%clk 0:00:03]} 71. Kd1 {[%clk 0:00:03]}  Rb1+ {[%clk 0:00:03]} 72. Kd2 {[%clk 0:00:04]}  Rb2+ {[%clk 0:00:04]} 73. Kd3 {[%clk 0:00:04]}  Rg2 {[%clk 0:00:05]} 74. Rh8 {[%clk 0:00:05]}  Rg3+ {[%clk 0:00:05]} 75. Kd2 {[%clk 0:00:05]}  Rg4 {[%clk 0:00:06]} 76. Rc8 {[%clk 0:00:04]}  Rd4+ {[%clk 0:00:06]} 77. Ke3 {[%clk 0:00:04]}  Rc4 {[%clk 0:00:07]} 78. Rxc4 {[%clk 0:00:05]}  Kxc4 {[%clk 0:00:07]} 1/2-1/2


[Site "https://www.chess.com"]

[Event "Titled Tuesday Blitz May 2 Late 2023"]
[White "Holt, Conrad"]
[Black "Sargsyan, Shant"]
[WhiteFideId "2034387"]
[BlackFideId "13306766"]
[WhiteElo "2592"]
[BlackElo "2628"]
[Result "0-1"]
[Round "07"]
[TimeControl "180+2"]
[Date "2023.05.02"]
[WhiteClock "0:00:03"]
[BlackClock "0:01:50"]

1. d4 {[%clk 0:03:00]}  d6 {[%clk 0:03:00]} 2. Nf3 {[%clk 0:03:00]}  Nf6 {[%clk 0:03:00]} 3. c4 {[%clk 0:03:00]}  g6 {[%clk 0:03:01]} 4. Nc3 {[%clk 0:03:00]}  Bf5 {[%clk 0:03:02]} 5. d5 {[%clk 0:02:57]}  Bg7 {[%clk 0:03:01]} 6. Nd4 {[%clk 0:02:57]}  Bd7 {[%clk 0:03:01]} 7. e4 {[%clk 0:02:57]}  O-O {[%clk 0:03:02]} 8. Be2 {[%clk 0:02:58]}  e6 {[%clk 0:03:02]} 9. O-O {[%clk 0:02:57]}  Re8 {[%clk 0:03:02]} 10. dxe6 {[%clk 0:02:51]}  Bxe6 {[%clk 0:03:00]} 11. Nxe6 {[%clk 0:02:49]}  Rxe6 {[%clk 0:03:01]} 12. f3 {[%clk 0:02:47]}  Nc6 {[%clk 0:03:01]} 13. Kh1 {[%clk 0:02:45]}  Nd7 {[%clk 0:03:01]} 14. Nd5 {[%clk 0:02:43]}  a5 {[%clk 0:02:59]} 15. Rb1 {[%clk 0:02:28]}  Nc5 {[%clk 0:02:59]} 16. Be3 {[%clk 0:02:25]}  h5 {[%clk 0:02:43]} 17. Qd2 {[%clk 0:02:22]}  Nb4 {[%clk 0:02:31]} 18. Nf4 {[%clk 0:02:16]}  Re8 {[%clk 0:02:30]} 19. a3 {[%clk 0:02:14]}  Nc6 {[%clk 0:02:29]} 20. b4 {[%clk 0:02:14]}  axb4 {[%clk 0:02:30]} 21. axb4 {[%clk 0:02:14]}  Nd7 {[%clk 0:02:31]} 22. Rfd1 {[%clk 0:02:10]}  Nce5 {[%clk 0:02:27]} 23. c5 {[%clk 0:02:09]}  dxc5 {[%clk 0:02:21]} 24. bxc5 {[%clk 0:02:08]}  Qc8 {[%clk 0:02:14]} 25. Qb4 {[%clk 0:01:58]}  Ra2 {[%clk 0:02:08]} 26. Qb3 {[%clk 0:01:39]}  Qa8 {[%clk 0:01:56]} 27. Qb5 {[%clk 0:00:20]}  c6 {[%clk 0:01:50]} 28. Qxb7 {[%clk 0:00:03]}  Qxb7 {[%clk 0:01:51]} 29. Rxb7 {[%clk 0:00:03]}  g5 {[%clk 0:01:52]} 30. Nxh5 {[%clk 0:00:03]}  Rxe2 {[%clk 0:01:51]} 31. Bxg5 {[%clk 0:00:03]}  Nxc5 {[%clk 0:01:50]} 32. Rc7 {[%clk 0:00:03]}  Ne6 {[%clk 0:01:50]} 0-1


[Site "https://www.chess.com"]

[Event "Titled Tuesday Blitz May 2 Late 2023"]
[White "Ter-Sahakyan, Samvel"]
[Black "Kobo, Ori"]
[WhiteFideId "13302531"]
[BlackFideId "2812320"]
[WhiteElo "2566"]
[BlackElo "2447"]
[Result "1-0"]
[Round "07"]
[TimeControl "180+2"]
[Date "2023.05.02"]
[WhiteClock "0:01:13"]
[BlackClock "0:00:10"]

1. d4 {[%clk 0:03:00]}  Nf6 {[%clk 0:03:00]} 2. Nf3 {[%clk 0:03:00]}  g6 {[%clk 0:03:00]} 3. c4 {[%clk 0:02:55]}  Bg7 {[%clk 0:03:00]} 4. Nc3 {[%clk 0:02:55]}  d6 {[%clk 0:02:59]} 5. e4 {[%clk 0:02:55]}  Bg4 {[%clk 0:02:59]} 6. Be2 {[%clk 0:02:53]}  Bxf3 {[%clk 0:02:59]} 7. Bxf3 {[%clk 0:02:53]}  e5 {[%clk 0:02:59]} 8. d5 {[%clk 0:02:49]}  h5 {[%clk 0:02:59]} 9. Be3 {[%clk 0:02:40]}  Bh6 {[%clk 0:02:54]} 10. Bxh6 {[%clk 0:02:40]}  Rxh6 {[%clk 0:02:55]} 11. Qd2 {[%clk 0:02:39]}  Rh8 {[%clk 0:02:55]} 12. h4 {[%clk 0:02:38]}  a5 {[%clk 0:02:51]} 13. O-O-O {[%clk 0:02:38]}  Nbd7 {[%clk 0:02:48]} 14. Kb1 {[%clk 0:02:38]}  Nc5 {[%clk 0:02:46]} 15. Qe3 {[%clk 0:02:38]}  Kf8 {[%clk 0:02:42]} 16. g3 {[%clk 0:02:28]}  Kg7 {[%clk 0:02:42]} 17. Bg2 {[%clk 0:02:28]}  Qe7 {[%clk 0:02:31]} 18. Bh3 {[%clk 0:02:27]}  a4 {[%clk 0:02:12]} 19. a3 {[%clk 0:02:24]}  b6 {[%clk 0:01:57]} 20. f3 {[%clk 0:02:24]}  Rhb8 {[%clk 0:01:38]} 21. Rdg1 {[%clk 0:02:16]}  Rh8 {[%clk 0:01:35]} 22. Na2 {[%clk 0:02:16]}  Nb3 {[%clk 0:01:32]} 23. Nb4 {[%clk 0:02:13]}  Nd4 {[%clk 0:01:32]} 24. Bf1 {[%clk 0:02:09]}  Nd7 {[%clk 0:01:17]} 25. Ka2 {[%clk 0:02:08]}  Nc5 {[%clk 0:01:18]} 26. f4 {[%clk 0:02:00]}  Ncb3 {[%clk 0:01:17]} 27. Bd3 {[%clk 0:01:58]}  Rae8 {[%clk 0:01:09]} 28. Rh2 {[%clk 0:01:56]}  Nc5 {[%clk 0:01:01]} 29. Bb1 {[%clk 0:01:53]}  b5 {[%clk 0:00:41]} 30. cxb5 {[%clk 0:01:50]}  Nxb5 {[%clk 0:00:41]} 31. Nc6 {[%clk 0:01:50]}  Qf8 {[%clk 0:00:34]} 32. fxe5 {[%clk 0:01:47]}  dxe5 {[%clk 0:00:33]} 33. Rf2 {[%clk 0:01:47]}  Nb3 {[%clk 0:00:27]} 34. Rgf1 {[%clk 0:01:44]}  Nd6 {[%clk 0:00:27]} 35. Qc3 {[%clk 0:01:36]}  f6 {[%clk 0:00:20]} 36. Bc2 {[%clk 0:01:35]}  Nd4 {[%clk 0:00:19]} 37. Nxd4 {[%clk 0:01:32]}  exd4 {[%clk 0:00:20]} 38. Qxd4 {[%clk 0:01:29]}  Re5 {[%clk 0:00:20]} 39. Rxf6 {[%clk 0:01:22]}  Qxf6 {[%clk 0:00:19]} 40. Rxf6 {[%clk 0:01:23]}  Kxf6 {[%clk 0:00:19]} 41. Qxa4 {[%clk 0:01:18]}  Rhe8 {[%clk 0:00:19]} 42. Qc6 {[%clk 0:01:18]}  R5e7 {[%clk 0:00:12]} 43. Qc3+ {[%clk 0:01:14]}  Kf7 {[%clk 0:00:11]} 44. e5 {[%clk 0:01:13]}  Rxe5 {[%clk 0:00:10]} 45. Qxc7+ {[%clk 0:01:13]} 1-0


[Site "https://www.chess.com"]

[Event "Titled Tuesday Blitz May 2 Late 2023"]
[White "Koziorowicz, Michal"]
[Black "Ibarra Jerez, Jose Carlos"]
[WhiteFideId "21809194"]
[BlackFideId "2226332"]
[WhiteElo "2255"]
[BlackElo "2638"]
[Result "0-1"]
[Round "07"]
[TimeControl "180+2"]
[Date "2023.05.02"]
[WhiteClock "0:00:03"]
[BlackClock "0:00:05"]

1. e4 {[%clk 0:02:57]}  d5 {[%clk 0:03:00]} 2. exd5 {[%clk 0:02:56]}  Qxd5 {[%clk 0:03:01]} 3. Nf3 {[%clk 0:02:56]}  Bg4 {[%clk 0:02:57]} 4. Be2 {[%clk 0:02:56]}  Nc6 {[%clk 0:02:57]} 5. O-O {[%clk 0:02:56]}  O-O-O {[%clk 0:02:56]} 6. Nc3 {[%clk 0:02:56]}  Qh5 {[%clk 0:02:53]} 7. h3 {[%clk 0:02:55]}  Nf6 {[%clk 0:02:51]} 8. d3 {[%clk 0:02:48]}  e5 {[%clk 0:02:50]} 9. hxg4 {[%clk 0:02:42]}  Nxg4 {[%clk 0:02:50]} 10. Nh4 {[%clk 0:02:41]}  f5 {[%clk 0:02:42]} 11. Bxg4 {[%clk 0:02:38]}  fxg4 {[%clk 0:02:42]} 12. g3 {[%clk 0:02:38]}  Be7 {[%clk 0:02:20]} 13. Kg2 {[%clk 0:01:58]}  Bxh4 {[%clk 0:02:13]} 14. Rh1 {[%clk 0:01:56]}  g5 {[%clk 0:02:14]} 15. Ne4 {[%clk 0:01:50]}  h6 {[%clk 0:02:07]} 16. Be3 {[%clk 0:01:35]}  Rhf8 {[%clk 0:02:03]} 17. Qd2 {[%clk 0:01:22]}  Qf7 {[%clk 0:01:59]} 18. Qe2 {[%clk 0:01:20]}  Qh5 {[%clk 0:01:54]} 19. a3 {[%clk 0:01:17]}  Rf3 {[%clk 0:01:50]} 20. b4 {[%clk 0:01:14]}  Rdf8 {[%clk 0:01:49]} 21. b5 {[%clk 0:01:14]}  Nd8 {[%clk 0:01:46]} 22. a4 {[%clk 0:01:11]}  Ne6 {[%clk 0:01:46]} 23. a5 {[%clk 0:01:09]}  Nf4+ {[%clk 0:01:46]} 24. Bxf4 {[%clk 0:00:56]}  exf4 {[%clk 0:01:46]} 25. b6 {[%clk 0:00:53]}  a6 {[%clk 0:01:35]} 26. Nd6+ {[%clk 0:00:32]}  Kd7 {[%clk 0:01:29]} 27. Ne4 {[%clk 0:00:23]}  cxb6 {[%clk 0:00:24]} 28. axb6 {[%clk 0:00:23]}  Rxg3+ {[%clk 0:00:18]} 29. Nxg3 {[%clk 0:00:13]}  f3+ {[%clk 0:00:19]} 30. Kg1 {[%clk 0:00:12]}  fxe2 {[%clk 0:00:18]} 31. Nxh5 {[%clk 0:00:11]}  Bxf2+ {[%clk 0:00:19]} 32. Kg2 {[%clk 0:00:11]}  Kc6 {[%clk 0:00:12]} 33. Rhe1 {[%clk 0:00:10]}  Bxe1 {[%clk 0:00:12]} 34. Rxe1 {[%clk 0:00:11]}  Re8 {[%clk 0:00:11]} 35. Ng3 {[%clk 0:00:11]}  a5 {[%clk 0:00:10]} 36. Ne4 {[%clk 0:00:11]}  a4 {[%clk 0:00:08]} 37. Rxe2 {[%clk 0:00:11]}  a3 {[%clk 0:00:08]} 38. Re1 {[%clk 0:00:11]}  Kxb6 {[%clk 0:00:05]} 39. Kf2 {[%clk 0:00:11]}  Rc8 {[%clk 0:00:05]} 40. c4 {[%clk 0:00:11]}  Ka5 {[%clk 0:00:04]} 41. Ke3 {[%clk 0:00:11]}  Kb4 {[%clk 0:00:05]} 42. Kd2 {[%clk 0:00:11]}  a2 {[%clk 0:00:05]} 43. Kc2 {[%clk 0:00:10]}  Ka3 {[%clk 0:00:05]} 44. Nc3 {[%clk 0:00:06]}  Rf8 {[%clk 0:00:06]} 45. Nb5+ {[%clk 0:00:05]}  Kb4 {[%clk 0:00:05]} 46. Kb2 {[%clk 0:00:03]}  Rf2+ {[%clk 0:00:06]} 47. Ka1 {[%clk 0:00:03]}  g3 {[%clk 0:00:05]} 0-1


[Site "https://www.chess.com"]

[Event "Titled Tuesday Blitz May 2 Late 2023"]
[White "Firouzja, Alireza"]
[Black "Seemann, Jakub"]
[WhiteFideId "12573981"]
[BlackFideId "21874697"]
[WhiteElo "2904"]
[BlackElo "2364"]
[Result "1-0"]
[Round "07"]
[TimeControl "180+2"]
[Date "2023.05.02"]
[WhiteClock "0:00:58"]
[BlackClock "0:00:01"]

1. d4 {[%clk 0:03:00]}  Nf6 {[%clk 0:02:59]} 2. Nc3 {[%clk 0:03:01]}  d5 {[%clk 0:02:58]} 3. Bf4 {[%clk 0:03:02]}  e6 {[%clk 0:02:56]} 4. Nb5 {[%clk 0:03:01]}  Bb4+ {[%clk 0:02:57]} 5. c3 {[%clk 0:03:01]}  Ba5 {[%clk 0:02:57]} 6. a4 {[%clk 0:03:02]}  a6 {[%clk 0:02:56]} 7. b4 {[%clk 0:03:02]}  Nc6 {[%clk 0:02:56]} 8. Na3 {[%clk 0:02:59]}  Bb6 {[%clk 0:02:56]} 9. Nf3 {[%clk 0:02:59]}  O-O {[%clk 0:02:55]} 10. a5 {[%clk 0:02:58]}  Ba7 {[%clk 0:02:54]} 11. e3 {[%clk 0:02:59]}  Ne7 {[%clk 0:02:51]} 12. Bd3 {[%clk 0:02:59]}  c6 {[%clk 0:02:44]} 13. h4 {[%clk 0:02:56]}  Bb8 {[%clk 0:02:42]} 14. Bxb8 {[%clk 0:02:55]}  Rxb8 {[%clk 0:02:43]} 15. h5 {[%clk 0:02:55]}  h6 {[%clk 0:02:35]} 16. Ne5 {[%clk 0:02:55]}  Nd7 {[%clk 0:02:34]} 17. f4 {[%clk 0:02:51]}  Nxe5 {[%clk 0:02:31]} 18. fxe5 {[%clk 0:02:52]}  f6 {[%clk 0:02:30]} 19. exf6 {[%clk 0:02:45]}  Rxf6 {[%clk 0:02:31]} 20. Qg4 {[%clk 0:02:45]}  e5 {[%clk 0:02:26]} 21. Qg3 {[%clk 0:02:45]}  e4 {[%clk 0:02:26]} 22. Bxe4 {[%clk 0:02:39]}  Ra8 {[%clk 0:01:44]} 23. Bd3 {[%clk 0:02:31]}  Bf5 {[%clk 0:01:42]} 24. O-O {[%clk 0:02:30]}  Qd7 {[%clk 0:01:31]} 25. e4 {[%clk 0:02:22]}  dxe4 {[%clk 0:01:23]} 26. Bxe4 {[%clk 0:02:22]}  Raf8 {[%clk 0:01:22]} 27. Bf3 {[%clk 0:02:16]}  Be6 {[%clk 0:01:13]} 28. Rae1 {[%clk 0:02:15]}  Nf5 {[%clk 0:01:13]} 29. Qe5 {[%clk 0:02:13]}  Nh4 {[%clk 0:01:07]} 30. Be4 {[%clk 0:02:11]}  Rxf1+ {[%clk 0:00:30]} 31. Rxf1 {[%clk 0:02:12]}  Rxf1+ {[%clk 0:00:30]} 32. Kxf1 {[%clk 0:02:13]}  Qf7+ {[%clk 0:00:28]} 33. Kg1 {[%clk 0:02:10]}  Bd5 {[%clk 0:00:27]} 34. Bxd5 {[%clk 0:01:57]}  cxd5 {[%clk 0:00:25]} 35. Nc2 {[%clk 0:01:52]}  Nf5 {[%clk 0:00:23]} 36. Ne1 {[%clk 0:01:45]}  Kh7 {[%clk 0:00:17]} 37. Nf3 {[%clk 0:01:42]}  Ne7 {[%clk 0:00:17]} 38. Kf2 {[%clk 0:01:31]}  Nc6 {[%clk 0:00:16]} 39. Qh2 {[%clk 0:01:01]}  Qf5 {[%clk 0:00:13]} 40. Qh3 {[%clk 0:01:02]}  Qc2+ {[%clk 0:00:10]} 41. Kg1 {[%clk 0:01:02]}  Qxc3 {[%clk 0:00:07]} 42. Qf5+ {[%clk 0:01:02]}  Kh8 {[%clk 0:00:03]} 43. Qxd5 {[%clk 0:01:02]}  Qxb4 {[%clk 0:00:02]} 44. Qe6 {[%clk 0:00:58]}  Qxa5 {[%clk 0:00:01]} 45. d5 {[%clk 0:00:58]} 1-0


[Site "https://www.chess.com"]

[Event "Titled Tuesday Blitz May 2 Late 2023"]
[White "Fedoseev, Vladimir"]
[Black "Kosakowski, Jakub"]
[WhiteFideId "24130737"]
[BlackFideId "1185080"]
[WhiteElo "2752"]
[BlackElo "2488"]
[Result "1-0"]
[Round "07"]
[TimeControl "180+2"]
[Date "2023.05.02"]
[WhiteClock "0:00:45"]
[BlackClock "0:00:02"]

1. Nf3 {[%clk 0:03:00]}  Nf6 {[%clk 0:02:58]} 2. b3 {[%clk 0:03:01]}  g6 {[%clk 0:02:55]} 3. Bb2 {[%clk 0:03:01]}  Bg7 {[%clk 0:02:56]} 4. e3 {[%clk 0:03:02]}  O-O {[%clk 0:02:56]} 5. Be2 {[%clk 0:03:03]}  d6 {[%clk 0:02:56]} 6. O-O {[%clk 0:03:03]}  b6 {[%clk 0:02:54]} 7. c4 {[%clk 0:03:03]}  Bb7 {[%clk 0:02:55]} 8. Nc3 {[%clk 0:03:04]}  Nbd7 {[%clk 0:02:54]} 9. d4 {[%clk 0:03:04]}  Ne4 {[%clk 0:02:52]} 10. Nd5 {[%clk 0:02:47]}  e6 {[%clk 0:02:49]} 11. Nf4 {[%clk 0:02:46]}  c5 {[%clk 0:02:45]} 12. Qc2 {[%clk 0:02:44]}  cxd4 {[%clk 0:02:25]} 13. exd4 {[%clk 0:02:12]}  Ng5 {[%clk 0:02:19]} 14. Nd2 {[%clk 0:01:50]}  e5 {[%clk 0:02:14]} 15. dxe5 {[%clk 0:01:49]}  Nxe5 {[%clk 0:02:10]} 16. Rad1 {[%clk 0:01:37]}  Re8 {[%clk 0:02:08]} 17. Rfe1 {[%clk 0:01:35]}  Qf6 {[%clk 0:01:56]} 18. g3 {[%clk 0:01:14]}  Ne6 {[%clk 0:01:07]} 19. Nd5 {[%clk 0:01:08]}  Bxd5 {[%clk 0:00:47]} 20. cxd5 {[%clk 0:01:07]}  Nc5 {[%clk 0:00:47]} 21. Ba1 {[%clk 0:01:01]}  Qe7 {[%clk 0:00:32]} 22. Bb5 {[%clk 0:00:55]}  Rec8 {[%clk 0:00:21]} 23. f4 {[%clk 0:00:53]}  Ne6 {[%clk 0:00:05]} 24. Qe4 {[%clk 0:00:49]}  f5 {[%clk 0:00:03]} 25. Qe2 {[%clk 0:00:48]}  Nc7 {[%clk 0:00:02]} 26. fxe5 {[%clk 0:00:45]} 1-0


[Site "https://www.chess.com"]

[Event "Titled Tuesday Blitz May 2 Late 2023"]
[White "Makridis, Dimitrios"]
[Black "Paravyan, David"]
[WhiteFideId "25864475"]
[BlackFideId "4194985"]
[WhiteElo "2277"]
[BlackElo "2563"]
[Result "1-0"]
[Round "07"]
[TimeControl "180+2"]
[Date "2023.05.02"]
[WhiteClock "0:00:09"]
[BlackClock "0:00:04"]

1. e4 {[%clk 0:02:59]}  e5 {[%clk 0:02:43]} 2. Nf3 {[%clk 0:02:52]}  Nf6 {[%clk 0:02:42]} 3. Nxe5 {[%clk 0:02:50]}  d6 {[%clk 0:02:41]} 4. Nd3 {[%clk 0:02:50]}  Nxe4 {[%clk 0:02:42]} 5. Qe2 {[%clk 0:02:50]}  Qe7 {[%clk 0:02:41]} 6. Nf4 {[%clk 0:02:51]}  Nc6 {[%clk 0:02:40]} 7. Nd5 {[%clk 0:02:38]}  Nd4 {[%clk 0:02:40]} 8. Nxe7 {[%clk 0:02:33]}  Nxe2 {[%clk 0:02:40]} 9. Nd5 {[%clk 0:02:34]}  Nd4 {[%clk 0:02:39]} 10. Na3 {[%clk 0:02:34]}  Ne6 {[%clk 0:02:38]} 11. d3 {[%clk 0:02:29]}  N4c5 {[%clk 0:02:37]} 12. c3 {[%clk 0:02:22]}  c6 {[%clk 0:02:36]} 13. Nf4 {[%clk 0:02:23]}  d5 {[%clk 0:02:35]} 14. Nc2 {[%clk 0:02:22]}  Bd6 {[%clk 0:02:33]} 15. Nxe6 {[%clk 0:02:11]}  Nxe6 {[%clk 0:02:24]} 16. d4 {[%clk 0:02:11]}  a5 {[%clk 0:02:20]} 17. a4 {[%clk 0:02:09]}  f6 {[%clk 0:02:18]} 18. Be3 {[%clk 0:02:07]}  Kf7 {[%clk 0:02:18]} 19. Bd3 {[%clk 0:02:07]}  h5 {[%clk 0:02:17]} 20. h4 {[%clk 0:02:06]}  g6 {[%clk 0:02:17]} 21. g3 {[%clk 0:02:06]}  Ng7 {[%clk 0:02:17]} 22. Kd2 {[%clk 0:02:05]}  Bf5 {[%clk 0:02:18]} 23. Rhb1 {[%clk 0:02:04]}  Bxd3 {[%clk 0:02:15]} 24. Kxd3 {[%clk 0:02:04]}  Ne6 {[%clk 0:02:03]} 25. b3 {[%clk 0:01:54]}  Rhd8 {[%clk 0:01:52]} 26. c4 {[%clk 0:01:51]}  b6 {[%clk 0:01:45]} 27. cxd5 {[%clk 0:01:41]}  cxd5 {[%clk 0:01:45]} 28. Bd2 {[%clk 0:01:38]}  Rac8 {[%clk 0:01:24]} 29. Ne3 {[%clk 0:01:33]}  Bf8 {[%clk 0:01:19]} 30. b4 {[%clk 0:01:28]}  axb4 {[%clk 0:01:09]} 31. Bxb4 {[%clk 0:01:29]}  Bh6 {[%clk 0:01:09]} 32. Bd2 {[%clk 0:01:07]}  Bxe3 {[%clk 0:01:01]} 33. fxe3 {[%clk 0:01:08]}  Rd6 {[%clk 0:00:56]} 34. Rb3 {[%clk 0:01:01]}  Rc4 {[%clk 0:00:49]} 35. a5 {[%clk 0:00:56]}  bxa5 {[%clk 0:00:48]} 36. Rxa5 {[%clk 0:00:57]}  Rc7 {[%clk 0:00:43]} 37. Rbb5 {[%clk 0:00:39]}  Rcd7 {[%clk 0:00:40]} 38. Bb4 {[%clk 0:00:39]}  Nc7 {[%clk 0:00:33]} 39. Rb7 {[%clk 0:00:25]}  Rc6 {[%clk 0:00:03]} 40. Rc5 {[%clk 0:00:17]}  Rxc5 {[%clk 0:00:03]} 41. dxc5 {[%clk 0:00:18]}  Ke6 {[%clk 0:00:02]} 42. c6 {[%clk 0:00:18]}  Rf7 {[%clk 0:00:02]} 43. Kd4 {[%clk 0:00:18]}  g5 {[%clk 0:00:01]} 44. Kc5 {[%clk 0:00:15]}  Na6+ {[%clk 0:00:01]} 45. Kb6 {[%clk 0:00:14]}  Nxb4 {[%clk 0:00:01]} 46. Rxf7 {[%clk 0:00:13]}  Nxc6 {[%clk 0:00:01]} 47. Rh7 {[%clk 0:00:06]}  Ne5 {[%clk 0:00:02]} 48. Rxh5 {[%clk 0:00:05]}  Kf5 {[%clk 0:00:02]} 49. Kc5 {[%clk 0:00:04]}  Kg4 {[%clk 0:00:02]} 50. Rh8 {[%clk 0:00:04]}  Kxg3 {[%clk 0:00:02]} 51. h5 {[%clk 0:00:04]}  Kh4 {[%clk 0:00:03]} 52. h6 {[%clk 0:00:04]}  Kh5 {[%clk 0:00:02]} 53. Kxd5 {[%clk 0:00:04]}  Nf7 {[%clk 0:00:01]} 54. Rf8 {[%clk 0:00:04]}  Nxh6 {[%clk 0:00:02]} 55. Rxf6 {[%clk 0:00:05]}  Ng4 {[%clk 0:00:01]} 56. Rf3 {[%clk 0:00:05]}  Nh6 {[%clk 0:00:01]} 57. e4 {[%clk 0:00:05]}  Kg6 {[%clk 0:00:02]} 58. e5 {[%clk 0:00:05]}  Nf5 {[%clk 0:00:02]} 59. e6 {[%clk 0:00:05]}  Ne7+ {[%clk 0:00:02]} 60. Kd6 {[%clk 0:00:05]}  Nc8+ {[%clk 0:00:02]} 61. Kc7 {[%clk 0:00:05]}  Ne7 {[%clk 0:00:02]} 62. Kd7 {[%clk 0:00:05]}  Nd5 {[%clk 0:00:03]} 63. e7 {[%clk 0:00:06]}  Nxe7 {[%clk 0:00:02]} 64. Kxe7 {[%clk 0:00:07]}  g4 {[%clk 0:00:03]} 65. Rf8 {[%clk 0:00:07]}  Kg5 {[%clk 0:00:03]} 66. Ke6 {[%clk 0:00:08]}  g3 {[%clk 0:00:03]} 67. Ke5 {[%clk 0:00:07]}  Kg4 {[%clk 0:00:04]} 68. Ke4 {[%clk 0:00:08]}  g2 {[%clk 0:00:04]} 69. Rg8+ {[%clk 0:00:08]}  Kh3 {[%clk 0:00:04]} 70. Kf3 {[%clk 0:00:09]} 1-0


[Site "https://www.chess.com"]